Cogmind - Beta 14 @@@ ROGUE MODE // 2024.08.11 @ 15:41:53 Player: Rosa Result: Core destroyed Performance ------------- Evolutions (0) 0 Regions Visited (2) 400 Robots Destroyed (28) 140 Value Destroyed (665) 665 Prototype IDs (0) 0 Alien Tech Used (0) 0 Bonus (0) 0 TOTAL SCORE: 1205 Bonus ------- None Cogmind --------- Core Integrity 0/250 Matter 210/300 Energy 100/100 System Corruption 2% Temperature Cool (0) Movement Core (150) Ox2 Location -10/Mines Parts ------- > --- POWER (1) -------- (None) > --- PROPULSION (2) --- (None) > --- UTILITY (2) ------ Small Storage Unit Improved Trap Extractor (0/6) > --- WEAPON (2) ------- (None) > --- INVENTORY (8) ---- Datajack Peak State ------------ > --- POWER ------------ Light Nuclear Core > --- PROPULSION ------- Light Treads Light Treads > --- UTILITY ---------- Improved Heat Sink Small Storage Unit > --- WEAPON ----------- Light Assault Rifle Light Cannon > --- INVENTORY -------- Ion Engine Light Nuclear Core Light Treads Hover Unit Heat Sink Small Laser Small Laser Datajack [Rating: 12] Favorites ----------- Power Ion Engine Engine Ion Engine Power Core Light Nuclear Core Propulsion Light Treads Treads Light Treads Flight Unit Flight Unit Utility Small Storage Unit Device Improved Heat Sink Storage Small Storage Unit Protection Light Armor Plating Weapon Light Cannon Energy Gun Small Laser Ballistic Gun Light Assault Rifle Ballistic Cannon Light Cannon Build | -11 -10 -10 ------- Run | Yrd Mat Min Slots Evolved . | . . . Power . | . . . Propulsion . | . . . Utility . | . . . Weapon . | . . . Parts Attached 26 | 7 12 7 Power 6 | 1 4 1 Engine 5 | 1 3 1 Core 1 | . 1 . Reactor . | . . . Propulsion 8 | 2 3 3 Treads 6 | 2 3 1 Leg . | . . . Wheel . | . . . Hover . | . . . Flight 2 | . . 2 Utility 5 | 1 3 1 Device 3 | . 2 1 Storage 1 | 1 . . Processor . | . . . Hackware . | . . . Protection 1 | . 1 . Artifact . | . . . Weapon 7 | 3 2 2 Energy Gun 3 | 1 . 2 Energy Cannon . | . . . Ballistic Gun 2 | 2 . . Ballistic Cannon 2 | . 2 . Launcher . | . . . Special Weapon . | . . . Impact Weapon . | . . . Slashing Weapon . | . . . Piercing Weapon . | . . . Special Melee Weapon . | . . . Unidentified Prototypes . | . . . Parts Lost 11 | . 2 9 Power 2 | . 1 1 Propulsion 4 | . . 4 Utility 1 | . 1 . Weapon 4 | . . 4 Highest Loss Streak 8 | . 1 8 To Critical Strikes . | . . . Average Slot Usage (%) 93 | . 95 91 Engine 12 | . 11 12 Core 1 | . 2 . Treads 20 | . 28 12 Flight 4 | . . 9 Device 9 | . 4 14 Storage 14 | . 14 14 Protection 3 | . 6 . Ballistic Gun 9 | . 18 . Ballistic Cannon 17 | . 9 25 Peak Build Rating 12 | 6 12 10 Average Rating 8 | 5 8 8 On Entrance 5 | . 6 9 Naked Turns . | . . . Heaviest Build 19 | 10 17 19 Greatest Support 40 | 40 40 40 Greatest Overweight (x) 2 | 1 . 2 Average Overweight (x) . | . . . Largest Inventory Capacity 8 | 8 8 8 Average Capacity 7 | 7 8 8 Most Carried 8 | 2 8 7 Average Carried 5 | 1 6 4 Final Capacity 8 | 8 8 8 Final Carried 6 | 2 6 1 Class Distribution -------------------- 100% | Mutant Dominant Class ---------------- Mutant | -10/Materials Mutant | -10/Mines Resources | -11 -10 -10 ----------- Run | Yrd Mat Min Matter Collected 724 | 230 354 140 Remotely . | . . . Salvage Created 661 | . 541 120 Parts 46 | . 36 10 Haulers Intercepted 1 | . 1 . Recyclers Shooed 1 | . . 1 Parts Field Recycled . | . . . Retrieved Matter . | . . . Parts Self-Destructed . | . . . Prevented . | . . . Kills | -11 -10 -10 ------- Run | Yrd Mat Min Combat Hostiles Destroyed 23 | . 13 10 Guns 7 | . 7 . Cannons 16 | . 6 10 Classes Destroyed 6 | . 4 2 Worker 2 | . 1 1 Hauler 1 | . 1 . Watcher 2 | . 2 . Swarmer 9 | . . 9 Grunt 13 | . 13 . Sentry 1 | . . 1 Best Kill Streak 4 | . 4 4 Combat Bots Only 4 | . 4 4 Max Kills in Single Turn 2 | . 1 2 Gunslinging . | . . . Exploded . | . . . Melee . | . . . Uniques/NPCs Destroyed . | . . . Combat | -11 -10 -10 -------- Run | Yrd Mat Min Hostile Shots Fired 183 | . 84 99 Missed 55 | . 21 34 Damage Taken 1556 | . 777 779 Core 253 | . 165 88 Absorbed by Shields . | . . . Core Remaining (%) 100 | 100 . . Volleys Fired 96 | . 59 37 Largest 2 | . 2 2 Hottest 80 | . 70 80 Shots Fired 185 | . 118 67 Gun 89 | . 81 8 Cannon 96 | . 37 59 Launcher . | . . . Special . | . . . Kinetic 177 | . 118 59 Thermal 8 | . . 8 Explosive . | . . . Electromagnetic . | . . . Robot Hit Streak 11 | . 11 6 Robot Miss Streak 5 | . 4 5 Penetration Max . | . . . Secondary Targets 2 | . 2 . Max Gunslinging Chain 1 | . 1 . Shots Hit Robots 109 | . 80 29 Core Hits 49 | . 35 14 Critical Kills . | . . . Critical Parts Destroyed . | . . . Critical Strikes 4 | . 2 2 Blast 4 | . 2 2 Melee Attacks . | . . . Impact . | . . . Slashing . | . . . Piercing . | . . . Sneak Attacks . | . . . Combat Hostiles . | . . . Follow-up Attacks . | . . . Damage Inflicted 1431 | . 849 582 Guns 503 | . 440 63 Cannons 906 | . 409 497 Explosions . | . . . Melee . | . . . Ramming 22 | . . 22 Kinetic 1346 | . 849 497 Thermal 63 | . . 63 Explosive . | . . . Electromagnetic . | . . . Impact . | . . . Slashing . | . . . Piercing . | . . . Highest Corruption 2 | . . 2 Average Corruption 1 | . . 1 Corruption Purged . | . . . Corruption Blocked . | . . . Overload Shots . | . . . Overflow Damage 8 | . . 8 Projectiles 8 | . . 8 Explosions . | . . . Melee . | . . . Knockbacks 10 | . 2 8 Impact . | . . . Kinetic 9 | . 2 7 Secondary 1 | . . 1 Self-Inflicted Damage 4 | . . 4 Shots . | . . . Rammed 18 | . . 18 Targets Rammed 18 | . . 18 Kicked . | . . . Crushed . | . . . Highest Temperature 70 | . 70 31 Average Temperature 20 | . 21 11 Received Heat Transfer 600 | . 456 144 Siege Activations . | . . . Robots Corrupted . | . . . Combat Hostiles . | . . . Parts Fried . | . . . Impact Corruptions 1 | . . 1 Robots Melted . | . . . Combat Hostiles . | . . . Parts Melted . | . . . Heat Transferred 150 | . . 150 Parts Sabotaged . | . . . Parts Stolen . | . . . Parts Stripped . | . . . Power Chain Reactions . | . . . Alert | -11 -10 -10 ------- Run | Yrd Mat Min Peak Influence 327 | . 237 327 Initial 92 | . . 92 Average 159 | . 121 220 Maximum Alert Level 1 | . 1 1 Low Security (%) 64 | 100 78 43 Level 1 35 | . 21 56 Level 2 . | . . . Level 3 . | . . . Level 4 . | . . . Level 5 . | . . . High Security . | . . . Max Security . | . . . Squads Dispatched 4 | . 4 . Investigation 3 | . 3 . Extermination . | . . . Reinforcement 1 | . 1 . Assault . | . . . Garrison . | . . . Intercept . | . . . Searches Triggered . | . . . Construction Impeded . | . . . Haulers Reinforced . | . . . Active Scanning Responses . | . . . Cargo Convoy Interrupts . | . . . Stealth | -11 -10 -10 --------- Run | Yrd Mat Min Distress Signals 1 | . . 1 Communications Jammed . | . . . Distress Signals . | . . . Times Spotted 30 | . 18 12 Peak Tracking Total 4 | . 2 4 Tactical Retreats 2 | . 1 1 Traps | -11 -10 -10 ------- Run | Yrd Mat Min Traps Triggered 3 | . 2 1 Indirectly . | . . . Trap Hack Attempts . | . . . Triggered . | . . . Disarmed . | . . . Reprogrammed . | . . . Reused . | . . . Traps Extracted . | . . . Installed . | . . . Triggered . | . . . Machines | -11 -10 -10 ---------- Run | Yrd Mat Min Machines Disabled . | . . . Max in Single Turn . | . . . Machines Repaired . | . . . Machines Dismantled . | . . . Machines Sabotaged . | . . . Overloaded Fab Kills . | . . . Hacking | -11 -10 -10 --------- Run | Yrd Mat Min Machines Accessed 6 | . 5 1 Terminals 5 | . 5 . Fabricators . | . . . Repair Stations . | . . . Recycling Units . | . . . Scanalyzers . | . . . Garrison Access . | . . . Total Hacks 14 | . 13 1 Successful 11 | . 10 1 Failed 3 | . 3 . Catastrophic . | . . . Database Lockouts . | . . . Manual . | . . . Terminals 13 | . 13 . Fabricators . | . . . Repair Stations . | . . . Recycling Units . | . . . Scanalyzers . | . . . Garrison Access . | . . . Terminal Hacks 11 | . 10 1 Record 6 | . 6 . Open Door 1 | . . 1 Emergency Access Points 1 | . 1 . Alert Level 2 | . 2 . Dispatch Records 1 | . 1 . Fabricator Hacks . | . . . Repair Station Hacks . | . . . Recycling Unit Hacks . | . . . Scanalyzer . | . . . Garrison Access Hacks . | . . . Unauthorized Hacks . | . . . Terminals . | . . . Fabricators . | . . . Repair Stations . | . . . Recycling Units . | . . . Scanalyzers . | . . . Garrison Access . | . . . Data Cores Recovered . | . . . Used . | . . . Hacking Detections 3 | . 3 . Full Trace Events 1 | . 1 . Feedback Events . | . . . Feedback Blocked . | . . . Robot Schematics Acquired . | . . . Robots Built . | . . . Authchips . | . . . Time . | . . . Total Robot Build Rating . | . . . Part Schematics Acquired . | . . . Parts Built . | . . . Authchips . | . . . Time . | . . . Total Part Build Rating . | . . . Parts Repaired . | . . . Time . | . . . Parts Recycled . | . . . Recycled Matter . | . . . Retrieved Matter . | . . . Retrieved Components . | . . . Parts Scanalyzed . | . . . Part Schematics Acquired . | . . . Parts Damaged . | . . . Bothacking | -11 -10 -10 ------------ Run | Yrd Mat Min Used RIF Installer . | . . . Robots Hacked . | . . . Non-combat . | . . . Combat . | . . . Robot Hacks Applied . | . . . Relay Couplers Released . | . . . Fabnet Peak Effective % . | . . . Robots Rewired . | . . . Allies Hacked . | . . . Hacks Repelled . | . . . Allies | -11 -10 -10 -------- Run | Yrd Mat Min Total Allies . | . . . Largest Group . | . . . Highest-Rated Group . | . . . Highest-Rated Ally . | . . . Total Orders . | . . . Ally Attacks . | . . . Total Damage . | . . . Kills . | . . . Allies Corrupted . | . . . Allies Melted . | . . . Intel | -11 -10 -10 ------- Run | Yrd Mat Min Robot Analysis Total . | . . . Derelict Logs Recovered 1 | . . 1 Drone Launches . | . . . Drone Recoveries . | . . . Exploration | -11 -10 -10 ------------- Run | Yrd Mat Min Turns Passed 1432 | 85 689 658 Spaces Moved 644 | 48 307 289 Core 5 | 4 . 1 Treads 538 | 44 307 187 Legs . | . . . Wheels . | . . . Hover . | . . . Flight 101 | . . 101 Fastest Speed 50 | 50 160 150 Average Speed 165 | 153 160 172 Slowest Speed 200 | 160 160 200 Overloaded Moves . | . . . Propulsion Burnouts . | . . . Robots Hopped . | . . . Cave-ins Triggered . | . . . Exploration Rate (%) 42 | 4 51 71 Regions Visited 2 Branch Regions 1 Pre-discovered Areas 1 | . . 1 Known Exits Taken . | . . . Unknown Exits Taken 2 | 1 1 . Scrap Searched 1 | . . 1 Spaces Dug . | . . . Terrain Destroyed . | . . . Melee . | . . . Projectile . | . . . AOE . | . . . Terrain Rammed . | . . . Walls Destroyed . | . . . Machines Disabled . | . . . Actions | -11 -10 -10 --------- Run | Yrd Mat Min Total 828 | 56 402 370 Wait 18 | . 9 9 Move 642 | 47 306 289 Hop . | . . . Pick Up 15 | 2 8 5 Fast Attach 9 | 6 3 . Attach 4 | . . 4 Detach . | . . . Swap 13 | 1 9 3 Drop 14 | . 8 6 Fire 96 | . 59 37 Melee . | . . . Ram 14 | . . 14 Kick . | . . . Crush 3 | . . 3 Escape Stasis . | . . . Rewire . | . . . Trap . | . . . Miscellaneous . | . . . Route ------- -11/Scrapyard -10/Materials -10/Mines History --------- Turn | Location | Event 22 | -11/Scrapyard | Discovered new exit (range 16) 86 | -11/Scrapyard | Entered Materials 326 | -10/Materials | Build established: Mutant 664 | -10/Materials | Core integrity fell below 50% 680 | -10/Materials | Discovered new exit (range 15) 775 | -10/Materials | Entered Mines 961 | -10/Mines | Core integrity fell below 20% 1138 | -10/Mines | Met a Derelict who couldn't figure out how to use a Trap Extractor 1176 | -10/Mines | Learned Materials security intel 1191 | -10/Mines | Learned location of Storage (-7) 1433 | -10/Mines | Core destroyed Last Messages --------------- 01412_ Sml. Laser destroyed. 01412_ K-01 Serf collects debris. 01415_ Lgt. Treads destroyed. 01415_ Flight Unit destroyed. 01416_ K-01 Serf collects debris. 01418_ Sml. Laser destroyed. 01418_ Slammed into Y-45 Defender. 01418_ Destabilizing: System corrupted (+1). 01419_ Slammed into Y-45 Defender. 01420_ Acquired 3 matter. 01420_ K-01 Serf collects debris. 01421_ Slammed into Y-45 Defender. 01424_ K-01 Serf collects debris. 01425_ Slammed into Y-45 Defender. 01425_ Destabilizing: System corrupted (+1). 01427_ Slammed into Y-45 Defender. 01431_ Destabilizing: Core damaged (-10). 01433_ Machine disabled. 01433_ Slammed into Y-45 Defender. 01433_ Destabilizing: Core damaged (-10). Map ----- +----------------------------------------------------+ | ????????????????????????????????? | | ????????????????????????????????? | | ????????????????????????????????? | | ????????????????????????????????? | | ????????????????????????????????? | | ????????????????????????????????? | | ????????????????????????????????? | | ?????????????????##?????????????? | | ????????????????? ????????????? | | ????????????????? #????????????? | | ????????????????# #????????????? | | ????????????????# #????????????? | | ????????????????# #????#???????? | | ????????????????# #?### ???????? | | ????????????????# ## ????????? | | ????????????????# ## ????????? | | ????????????????# ## #????????? | | ????????????????# ## #???####?? | | ???????????????## ## #??## ##? | | ??????????????## ## #?## ## | | ???????######## ## ### # | | ??????##/!## # ## | | ??????#"!!k# u # | | ??????#%% ; # | | ??????# + ## | | ??????# @! # ## | | ??????##Y!## ## # | | ???????####### ## | | ????????????# #### | | ????????????# #??# | | ????????????# #??# | | ????????????## ## #??# | | ?????????????## #### ##??## | | ??????????????#####??######### | | ????????????????????????# | | ????????????????????????# | | ?????????????????########[[###### | | ?????????????????# " ""# !#???## | | ?????????????????#!!=[]!#* ##??# | | ?????????????????## ! ## ##?# | | ?????????????????##! [## #?# | | ?????????????????### ## ### | | ?????????????????# X ## | | ???????########### | | ???????# | | ???????# | | ???????# ######## | | ???????# #??????# | | ???????# #??????## | | ???????# #???????## # ### | +----------------------------------------------------+ Best States ------------- Heat Dissipation 39 Energy Generation 14 Energy Capacity 250 Matter Stores 300 Matter Capacity 300 Sight Range 16 Terrain Scan Density 10 Armor Coverage 150 Evasion (%) 40 Recoil Reduction 2 Trap Extractor Capacity 6 Item Schematics ----------------- None Robot Schematics ------------------ None Fabricated ------------ Nothing Alien Tech Used ----------------- None Achievements -------------- None Challenges ------------ None Game ------ Seed RecyclingPhysicsRail Manual? 0 Play Time 00:15:06 Cumulative 13.9 hours Start 2024.08.11 @ 00:36:08 End 2024.08.11 @ 15:41:53 Sessions 2 Manual Loads 0 Difficulty Rogue Special Mode None Game No. 52 Rogue 50 Adventurer 0 Explorer 2 Win Type - Total 0 Types 0/0/0/0/0/0/0/0/0 Lore% 6 Gallery% 22 Achievement% 16 Wizard Run 0 Options --------- Layout 1 ASCII 0 Keyboard 0 Movement Numpad Keybinds 0 Fullscreen 1 Font 32/SmallcapsGlow Map View 50x35 Zoom Use 0% Tactical HUD 1 Map Filters NONE Filters NONE Steam 1 RUN: a65c7261-8634-4e0c-aad1-6facf5579425